bitfinex/quotes_BTCUSD_20230111
["timestamp","ask_amount","ask_price","bid_price","bid_amount"]
[1673417800452,0.93057862,17426.0,17425.0,1.8971475]
[1673417800707,0.93057862,17426.0,17425.0,1.89704071]
[1673417800960,1.63806226,17426.0,17425.0,1.72511671]
[1673417801204,1.63806226,17426.0,17425.0,1.00871534]
[1673417801453,1.63806226,17426.0,17425.0,0.75084677]
[1673417801957,1.97503922,17426.0,17425.0,0.005]
[1673417802212,2.03252315,17426.0,17425.0,0.005]
[1673417802450,2.23229157,17426.0,17425.0,0.005]
[1673417803467,1.97503922,17426.0,17425.0,0.005]
[1673417804502,2.23229157,17426.0,17425.0,0.005]
[1673417805039,1.97503922,17426.0,17425.0,0.005]
[1673417808277,1.63911123,17426.0,17425.0,0.005]
[1673417809280,1.46751943,17426.0,17425.0,0.005]
[1673417810284,1.46745943,17426.0,17425.0,0.005]
[1673417811051,1.46739943,17426.0,17425.0,0.005]
[1673417811615,1.46733943,17426.0,17425.0,0.005]
[1673417811796,1.46727943,17426.0,17425.0,0.005]
[1673417812556,1.46721943,17426.0,17425.0,0.005]
[1673417813348,1.46715943,17426.0,17425.0,0.005]
[1673417813848,1.46709943,17426.0,17425.0,0.005]
[1673417814102,1.46994774,17426.0,17425.0,0.005]
[1673417814368,3.79744353,17426.0,17425.0,0.005]
[1673417814616,4.34013879,17426.0,17425.0,0.005]
[1673417815458,3.52381229,17426.0,17425.0,0.005]
[1673417815628,3.52375229,17426.0,17425.0,0.005]
[1673417815880,3.52353389,17426.0,17421.0,1.18339478]
[1673417816132,0.3289,17422.0,17421.0,1.18339478]
[1673417816402,0.688164,17422.0,17421.0,1.18339478]
[1673417817176,0.690164,17422.0,17421.0,1.20539478]
[1673417817440,1.26180374,17422.0,17421.0,1.20539478]
[1673417817690,1.26180374,17422.0,17421.0,0.63122978]
[1673417817984,1.26180374,17422.0,17421.0,0.022]
[1673417819282,1.26174374,17422.0,17421.0,0.022]
[1673417820335,1.74174848,17422.0,17421.0,0.022]
[1673417826447,1.74168848,17422.0,17421.0,0.022]
[1673417826686,1.74162848,17422.0,17421.0,0.022]
[1673417827198,1.74156848,17422.0,17421.0,0.022]
[1673417827708,1.74150848,17422.0,17421.0,0.022]
[1673417828218,1.74144848,17422.0,17421.0,0.022]
[1673417828722,1.74138848,17422.0,17421.0,0.022]
[1673417829228,1.74132848,17422.0,17421.0,0.022]
[1673417829472,1.74126848,17422.0,17421.0,0.022]
[1673417830248,1.74120848,17422.0,17421.0,0.022]
[1673417831013,1.74114848,17422.0,17421.0,0.022]
[1673417831531,1.74108848,17422.0,17421.0,0.022]
[1673417832027,1.74102848,17422.0,17421.0,0.022]
[1673417835100,1.71602848,17422.0,17421.0,0.022]
[1673417837237,1.71602848,17422.0,17421.0,0.58992828]
[1673417837238,1.23602374,17422.0,17421.0,0.58992828]
[1673417837748,1.23602374,17422.0,17421.0,1.16394728]
[1673417838277,0.664384,17422.0,17421.0,1.16394728]
[1673417838735,1.23602374,17422.0,17421.0,1.16394728]
[1673417839484,0.93296374,17422.0,17421.0,1.16394728]
[1673417839767,0.73833974,17422.0,17421.0,1.16394728]
[1673417840298,1.09766374,17422.0,17421.0,1.16394728]
[1673417842333,0.93296374,17422.0,17421.0,1.16394728]
[1673417842800,0.93296374,17422.0,17421.0,0.58992828]
[1673417847698,0.93296374,17422.0,17421.0,0.76188705]
[1673417849174,0.93296374,17422.0,17421.0,0.022]
[1673417851529,0.93296374,17422.0,17421.0,0.19395877]
[1673417853287,0.93296374,17422.0,17421.0,0.45182734]
[1673417855304,0.93296374,17422.0,17421.0,0.19395877]
[1673417855817,0.93296374,17422.0,17421.0,0.45182734]
[1673417858095,0.93296374,17422.0,17421.0,0.64988513]
[1673417867934,0.57363974,17422.0,17421.0,0.64988513]
[1673417868165,0.93296374,17422.0,17421.0,0.64988513]
[1673417869195,0.57363974,17422.0,17421.0,0.64988513]
[1673417869637,0.93296374,17422.0,17421.0,0.64988513]
[1673417870127,0.93296374,17422.0,17421.0,0.9937679]
[1673417870622,0.93296374,17422.0,17421.0,0.65000448]
[1673417871118,0.93296374,17422.0,17421.0,0.82180913]
[1673417871119,0.57363974,17422.0,17421.0,0.82180913]
[1673417871367,0.93296374,17422.0,17421.0,0.99388653]
[1673417871613,0.93296374,17422.0,17421.0,1.70950936]
[1673417871863,0.57363974,17422.0,17421.0,1.70950936]
[1673417873142,0.57363974,17422.0,17421.0,2.28352836]
[1673417875380,0.57363974,17422.0,17421.0,1.39582813]
[1673417875633,0.57363974,17422.0,17421.0,1.82599186]
[1673417875871,0.57363974,17422.0,17421.0,1.39608143]
[1673417876130,0.57363974,17422.0,17421.0,1.82599186]
[1673417876658,0.57363974,17422.0,17421.0,1.39608143]
[1673417876898,0.93296374,17422.0,17421.0,1.39608143]
[1673417878705,0.93296374,17422.0,17421.0,0.82206243]
[1673417879470,1.29826688,17422.0,17421.0,0.82206243]
[1673417879731,1.29826688,17422.0,17421.0,0.6502823]
[1673417879983,1.29826688,17422.0,17421.0,0.45222451]
[1673417880243,1.46999437,17422.0,17421.0,0.19410264]
[1673417880712,1.29826688,17422.0,17421.0,0.45222451]
[1673417880976,0.93894288,17422.0,17421.0,0.66698447]
[1673417881753,1.29826688,17422.0,17421.0,0.45222451]
[1673417883051,1.32006558,17422.0,17421.0,0.45222451]
[1673417883569,1.32006558,17422.0,17421.0,0.66704288]
[1673417884841,1.32006558,17422.0,17421.0,0.45222451]
[1673417885849,1.32006558,17422.0,17421.0,0.19410264]
[1673417886881,1.49179307,17422.0,17421.0,0.19410264]
[1673417887964,1.32006558,17422.0,17421.0,0.45222451]
[1673417888156,1.32006558,17422.0,17421.0,1.1433657]
[1673417888414,1.32006558,17422.0,17421.0,1.35781865]
[1673417892857,1.32006558,17422.0,17421.0,0.66667746]
[1673417895183,0.74842584,17422.0,17421.0,0.66667746]
[1673417899379,1.32006558,17422.0,17421.0,0.66667746]
[1673417902630,0.96074158,17422.0,17421.0,0.66667746]
[1673417903114,1.32006558,17422.0,17421.0,0.66667746]
[1673417903364,0.96074158,17422.0,17421.0,0.66667746]
[1673417903632,0.59543844,17422.0,17421.0,1.41257879]
[1673417903874,0.59543844,17422.0,17421.0,1.41247659]
[1673417904644,0.0237987,17422.0,17421.0,1.41257879]
[1673417904909,0.02372017,17422.0,17421.0,2.83527554]
[1673417905167,0.02372017,17422.0,17421.0,3.43527554]
[1673417905429,0.02372017,17422.0,17421.0,3.73547305]
[1673417906718,0.02372017,17422.0,17421.0,3.73537085]
[1673417907011,0.02372017,17422.0,17421.0,3.73547305]
[1673417907775,0.02372017,17422.0,17421.0,3.43547305]
[1673417908301,0.02372017,17422.0,17421.0,3.43537085]
[1673417911344,0.02372017,17422.0,17421.0,3.69335586]
[1673417911585,0.02372017,17422.0,17421.0,3.43537085]
[1673417911826,0.02372017,17422.0,17421.0,3.69335893]
[1673417912080,0.02372017,17422.0,17421.0,3.43537085]
[1673417912850,0.02372017,17422.0,17421.0,3.26344802]
[1673417913105,0.59490971,17422.0,17421.0,3.26344802]
[1673417913613,0.02372017,17422.0,17421.0,3.26344802]
[1673417914884,0.02372017,17422.0,17421.0,3.69346065]
[1673417915186,0.02372017,17422.0,17421.0,3.21946994]
[1673417915398,0.02372017,17422.0,17421.0,4.30857194]
[1673417915922,0.02372017,17422.0,17421.0,4.37903181]
[1673417919423,0.02372017,17422.0,17421.0,4.42267415]
[1673417921230,0.02372017,17422.0,17421.0,3.74578496]
[1673417921493,0.02372017,17422.0,17421.0,3.92616442]
[1673417921746,0.01839565,17422.0,17421.0,4.46651435]
[1673417921995,0.01839565,17422.0,17421.0,4.10407218]
[1673417922248,0.01839565,17422.0,17421.0,3.49638055]
[1673417922557,0.01839565,17422.0,17421.0,4.6739679]
[1673417923052,0.01839565,17422.0,17421.0,4.6740701]
[1673417924573,0.01839565,17422.0,17421.0,5.21812641]
[1673417925076,0.01839565,17422.0,17421.0,4.6805163]
[1673417925341,0.01839565,17422.0,17421.0,4.31853906]
[1673417925592,0.02439565,17422.0,17421.0,4.42953906]
[1673417926698,0.02439565,17422.0,17421.0,4.85892286]
[1673417927160,0.02439565,17422.0,17421.0,4.858945]
[1673417927926,0.02439565,17422.0,17421.0,4.42953906]
[1673417931763,0.02439565,17422.0,17421.0,3.88548275]
[1673417932016,0.02439565,17422.0,17421.0,4.40848791]
[1673417933037,0.02439565,17422.0,17421.0,4.76903392]
[1673417933300,0.02439565,17422.0,17421.0,4.40848791]
[1673417933811,0.02439565,17422.0,17421.0,5.28484653]
[1673417934060,0.02439565,17422.0,17421.0,4.76184137]
[1673417934589,0.02439565,17422.0,17421.0,5.35833935]
[1673417935591,0.02439565,17422.0,17421.0,4.76184137]
[1673417936126,0.02439565,17422.0,17421.0,5.47087258]
[1673417938395,0.02439565,17422.0,17421.0,4.95526247]
[1673417938654,0.02439565,17422.0,17421.0,4.59451396]
[1673417939188,0.02439565,17422.0,17421.0,4.95518555]
[1673417939461,0.02439565,17422.0,17421.0,5.11012407]
[1673417939683,0.02439565,17422.0,17421.0,5.47079338]
[1673417940709,0.02439565,17422.0,17421.0,4.59451396]
[1673417940955,0.02439565,17422.0,17421.0,4.66439677]
[1673417941708,0.02439565,17422.0,17421.0,4.23508776]
[1673417941945,0.01904339,17422.0,17421.0,4.23508776]
[1673417942454,0.01904339,17422.0,17421.0,4.49964697]
[1673417943191,0.01904339,17422.0,17421.0,4.07028776]
[1673417944006,0.01904339,17422.0,17421.0,4.34555422]
[1673417944277,0.01904339,17422.0,17421.0,4.86116433]
[1673417944775,0.01904339,17422.0,17421.0,4.86126653]
[1673417945027,0.01904339,17422.0,17421.0,5.22059053]
[1673417945539,0.01904339,17422.0,17421.0,4.86126653]
[1673417946526,0.01904339,17422.0,17421.0,5.22059053]
[1673417947041,0.01904339,17422.0,17421.0,4.59757701]
[1673417947305,0.01904339,17422.0,17421.0,5.31870569]
[1673417949634,0.01904339,17422.0,17421.0,4.80309558]
[1673417950702,0.01904339,17422.0,17421.0,5.31842938]
[1673417950929,0.01904339,17422.0,17421.0,5.31844294]
[1673417951924,0.01904339,17422.0,17421.0,5.31850137]
[1673417952172,0.01904339,17422.0,17421.0,4.80309558]
[1673417955724,0.01904339,17422.0,17421.0,4.0819669]
[1673417955981,0.0098574,17422.0,17421.0,4.0819669]
[1673417957212,0.0098574,17422.0,17421.0,5.36255036]
[1673417957483,0.0098574,17422.0,17421.0,4.60097946]
[1673417958765,0.0098574,17422.0,17421.0,4.0819669]
[1673417959020,0.02639772,17422.0,17421.0,4.67781493]
[1673417959258,0.02639772,17422.0,17421.0,4.0819669]
[1673417959517,0.02639772,17422.0,17421.0,4.8435378]
[1673417960263,0.02639772,17422.0,17421.0,4.0819669]
[1673417960521,0.02639772,17422.0,17421.0,4.2467669]
[1673417960767,0.02639772,17422.0,17421.0,4.3614412]
[1673417961028,0.02639772,17422.0,17421.0,4.36144065]
[1673417961289,0.02639772,17422.0,17421.0,4.2467669]
[1673417961771,0.02061259,17422.0,17421.0,4.2467669]
[1673417962036,0.02061259,17422.0,17421.0,5.00782195]
[1673417963077,0.02061259,17422.0,17421.0,5.00759217]
[1673417963675,0.02061259,17422.0,17421.0,5.00756476]
[1673417963941,0.02061259,17422.0,17421.0,5.00757013]
[1673417965823,0.01069571,17422.0,17421.0,5.00757013]
[1673417971333,0.01069571,17422.0,17421.0,5.54703199]
[1673417971575,0.01069571,17422.0,17421.0,4.78614604]
[1673417972084,0.01069571,17422.0,17421.0,5.54703199]
[1673417972346,0.01069571,17422.0,17421.0,5.00757013]
[1673417973629,0.01069571,17422.0,17421.0,5.58866183]
[1673417974977,0.01069571,17422.0,17421.0,5.00757013]
[1673417975775,0.01069571,17422.0,17421.0,5.68036078]
[1673417976023,0.0055297,17422.0,17421.0,5.64895227]
[1673417977126,0.0055297,17422.0,17421.0,4.88796412]
[1673417978217,0.0055297,17422.0,17421.0,5.40328566]
[1673417978736,0.0055297,17422.0,17421.0,4.80328566]
[1673417979478,0.0055297,17422.0,17421.0,4.80338786]
[1673417980041,0.0055297,17422.0,17421.0,4.28806632]
[1673417980300,0.0055297,17422.0,17421.0,4.80341952]
[1673417980568,0.0055297,17422.0,17421.0,4.80341941]
[1673417981081,0.0055297,17422.0,17421.0,4.28806632]
[1673417981340,0.0055297,17422.0,17421.0,4.80343297]
[1673417981865,0.00402007,17422.0,17421.0,4.80343297]
[1673417982626,0.00402007,17422.0,17421.0,4.63863297]
[1673417982881,0.00402007,17422.0,17421.0,4.12326632]
[1673417985058,0.00402007,17422.0,17421.0,4.63878885]
[1673417985300,0.00402007,17422.0,17421.0,4.27936265]
[1673417986288,0.00402007,17422.0,17421.0,4.63868665]
[1673417988803,0.00402007,17422.0,17421.0,4.63878885]
[1673417989298,0.00402007,17422.0,17421.0,4.12326632]
[1673417989547,0.00402007,17422.0,17421.0,4.63872111]
[1673417989794,0.00402007,17422.0,17421.0,4.63882331]
[1673417999403,0.00402007,17422.0,17421.0,4.12326632]
[1673418001168,0.00196319,17422.0,17421.0,3.48188418]
[1673418001421,0.00196319,17422.0,17421.0,4.24277013]
[1673418001916,0.16495,17425.0,17422.0,1.02052439]
[1673418002175,0.1645,17424.0,17423.0,2.23622923]
[1673418002411,0.1645,17424.0,17423.0,2.53622923]
[1673418002922,0.1645,17424.0,17423.0,3.62494573]
[1673418003421,0.1705,17424.0,17423.0,3.74194573]
[1673418004175,0.1705,17424.0,17423.0,4.10322988]
[1673418005969,0.1705,17424.0,17423.0,4.10342438]
[1673418008472,0.1705,17424.0,17423.0,4.10322988]
[1673418012265,0.006,17424.0,17423.0,4.10322988]
[1673418020281,0.006,17424.0,17423.0,2.93012161]
[1673418020526,1.41052347,17424.0,17423.0,1.47927623]
[1673418020791,1.24672347,17424.0,17423.0,1.47927623]
[1673418021044,1.24672347,17424.0,17423.0,2.08100209]
[1673418021567,0.880904,17424.0,17423.0,2.08100209]
[1673418021829,0.880904,17424.0,17423.0,0.93309609]
[1673418022093,0.880904,17424.0,17423.0,2.08100209]
[1673418022094,1.3516267,17424.0,17423.0,2.08100209]
[1673418022823,1.3516267,17424.0,17423.0,1.90907164]
[1673418023844,1.3516267,17424.0,17423.0,2.08100209]
[1673418024850,1.3516267,17424.0,17423.0,2.25289657]
[1673418025093,1.3516267,17424.0,17423.0,1.90905322]
[1673418025597,1.35156089,17424.0,17423.0,1.90905322]
[1673418028713,1.35156089,17424.0,17423.0,1.89752052]
[1673418028901,1.35156089,17424.0,17423.0,1.69468299]
[1673418029404,1.35156089,17424.0,17423.0,1.12072999]
[1673418029658,1.35156089,17424.0,17423.0,0.117]
[1673418029902,1.51636089,17424.0,17423.0,0.117]
[1673418030150,1.96251734,17424.0,17423.0,0.117]
[1673418030423,1.51636089,17424.0,17423.0,0.117]
[1673418037384,1.51636089,17424.0,17423.0,0.690953]
[1673418039556,1.51636089,17424.0,17423.0,0.117]
[1673418044232,1.51636089,17424.0,17423.0,0.690953]
[1673418049968,1.35156089,17424.0,17423.0,0.690953]
[1673418054241,1.35156089,17424.0,17423.0,0.117]
[1673418057214,1.35156089,17424.0,17423.0,0.28889448]
[1673418058711,1.35156089,17424.0,17423.0,0.75824846]
[1673418059479,1.35156089,17424.0,17423.0,0.28889448]
[1673418061742,1.34979289,17424.0,17423.0,0.28889448]
[1673418062769,1.18509289,17424.0,17423.0,0.28889448]
[1673418063779,1.18509289,17424.0,17423.0,0.54677699]
[1673418064035,1.18509289,17424.0,17423.0,0.28889448]
[1673418068776,1.18509289,17424.0,17423.0,0.54677699]
[1673418069099,0.52829019,17424.0,17423.0,0.28889448]
[1673418069361,0.52829019,17424.0,17423.0,0.92922987]
[1673418069594,0.52829019,17424.0,17423.0,2.15636922]
[1673418069858,0.52829019,17424.0,17423.0,2.73032222]
[1673418070115,0.52829019,17424.0,17423.0,3.16012641]
[1673418070376,0.16896619,17424.0,17423.0,3.16038812]
[1673418070659,0.16896619,17424.0,17423.0,2.73058393]
[1673418070889,0.16896619,17424.0,17423.0,2.73058056]
[1673418071909,0.16896619,17424.0,17423.0,3.16038475]
[1673418072170,0.16896619,17424.0,17423.0,2.9022439]
[1673418072935,0.16896619,17424.0,17423.0,3.16034927]
[1673418073195,0.16896619,17424.0,17423.0,2.9022439]
[1673418073696,0.52829019,17424.0,17423.0,2.73052199]
[1673418073946,0.16896619,17424.0,17423.0,2.73052199]
[1673418074462,0.16896619,17424.0,17423.0,2.73052424]
[1673418075236,0.16896619,17424.0,17423.0,3.16032843]
[1673418075520,0.16896619,17424.0,17423.0,2.73050066]
[1673418075832,0.16896619,17424.0,17423.0,2.9022439]
[1673418082323,0.00416619,17424.0,17423.0,3.2022439]
[1673418083065,0.00416619,17424.0,17423.0,3.8022439]
[1673418083866,0.00416619,17424.0,17423.0,4.1022439]
[1673418085906,0.00407956,17424.0,17423.0,4.1022439]
[1673418086640,0.00407956,17424.0,17423.0,4.1024384]
[1673418088457,0.00407956,17424.0,17423.0,3.8024384]
[1673418089501,0.00407956,17424.0,17423.0,4.1024384]
[1673418089795,0.00407956,17424.0,17423.0,3.8024384]
[1673418090067,0.00407956,17424.0,17423.0,3.8022439]
[1673418090337,0.00407956,17424.0,17423.0,3.8024384]
[1673418091338,0.00407956,17424.0,17423.0,3.8022439]
[1673418094675,0.00407956,17424.0,17423.0,4.06001342]
[1673418094936,0.38575305,17425.0,17424.0,0.3]
[1673418095201,0.38575305,17425.0,17424.0,1.87746058]
[1673418095710,0.74507705,17425.0,17424.0,1.87746058]
[1673418095969,0.38575305,17425.0,17424.0,1.87746058]
[1673418096238,0.75007705,17425.0,17424.0,1.96746058]
[1673418096510,0.75007705,17425.0,17424.0,1.70968897]
[1673418096726,0.75007705,17425.0,17424.0,1.96746058]
[1673418096981,0.39075305,17425.0,17424.0,1.96746058]
[1673418097204,0.75007705,17425.0,17424.0,1.70968897]
[1673418097489,0.75007705,17425.0,17424.0,1.66746058]
[1673418097748,0.74507705,17425.0,17424.0,1.31968897]
[1673418097995,0.74507705,17425.0,17424.0,1.33568897]
[1673418098516,0.38575305,17425.0,17424.0,1.33568897]
[1673418099294,0.38575305,17425.0,17424.0,1.59346058]
[1673418099551,0.38575305,17425.0,17424.0,1.33568897]
[1673418099804,0.74507705,17425.0,17424.0,1.33568897]
[1673418100073,0.38575305,17425.0,17424.0,1.33568897]
[1673418100829,0.74507705,17425.0,17424.0,1.33568897]
[1673418101087,0.38575305,17425.0,17424.0,1.33568897]
[1673418101384,0.74507705,17425.0,17424.0,1.33568897]
[1673418101668,0.1647,17426.0,17424.0,1.33568897]
[1673418101923,0.62646651,17426.0,17424.0,1.59346058]
[1673418102176,0.359324,17425.0,17424.0,1.33568897]
[1673418102721,0.359324,17425.0,17424.0,1.57746058]
[1673418103708,0.359324,17425.0,17424.0,1.33568897]
[1673418103986,0.359324,17425.0,17424.0,1.31968897]
[1673418104233,0.359324,17425.0,17424.0,1.59346058]
[1673418104475,0.359324,17425.0,17424.0,1.33568897]
[1673418104975,0.359324,17425.0,17424.0,1.59346058]
[1673418107002,0.359324,17425.0,17424.0,1.80445887]
[1673418109066,0.359324,17425.0,17424.0,2.1484521]
[1673418109320,0.359324,17425.0,17424.0,1.97645525]
[1673418109545,0.359324,17425.0,17424.0,1.80460827]
[1673418109824,0.359324,17425.0,17424.0,2.14845162]
[1673418110094,0.359324,17425.0,17424.0,1.80460827]
[1673418110354,0.359324,17425.0,17424.0,2.14845162]
[1673418110851,0.359324,17425.0,17424.0,1.97645525]
[1673418111626,0.359324,17425.0,17424.0,2.14847267]
[1673418111881,0.359324,17425.0,17424.0,1.80462932]
[1673418112654,0.359324,17425.0,17424.0,1.97645525]
[1673418114431,0.359324,17425.0,17424.0,2.14849354]
[1673418114929,0.359324,17425.0,17424.0,1.97645525]
[1673418115402,0.359324,17425.0,17424.0,1.80466182]
[1673418115906,0.71700451,17425.0,17424.0,1.23074082]
[1673418120973,0.76150189,17425.0,17424.0,0.65681982]
[1673418121234,1.36899111,17425.0,17424.0,0.016]
[1673418121492,1.62658722,17425.0,17424.0,0.016]
[1673418121761,1.79786286,17425.0,17424.0,0.016]
[1673418122076,2.93785495,17425.0,17424.0,0.016]
[1673418122255,1.58914869,17425.0,17422.0,0.42983739]
[1673418122518,0.1647,17423.0,17422.0,0.64265662]
[1673418122767,0.524024,17423.0,17422.0,0.64265662]
[1673418123317,0.1647,17423.0,17422.0,1.4713195]
[1673418123582,0.57738528,17425.0,17422.0,2.23333808]
[1673418123833,0.57738528,17425.0,17423.0,0.42985783]
[1673418124093,0.57738528,17425.0,17423.0,0.64858576]
[1673418124338,0.81365895,17424.0,17423.0,0.17194313]
[1673418125134,0.81365895,17424.0,17423.0,0.17494313]
[1673418125390,0.81365895,17424.0,17423.0,0.17194313]
[1673418126410,0.86765895,17424.0,17423.0,0.17494313]
[1673418127446,0.86765895,17424.0,17423.0,0.003]
[1673418130947,0.7815088,17424.0,17423.0,0.003]
[1673418131715,1.1098088,17424.0,17423.0,0.003]
[1673418142222,0.9454088,17424.0,17423.0,0.003]
[1673418147986,1.11743099,17424.0,17423.0,0.003]
[1673418150252,0.9454088,17424.0,17423.0,0.003]
[1673418151235,1.11743099,17424.0,17423.0,0.003]
[1673418153016,1.60790229,17424.0,17423.0,0.00291442]
[1673418153300,1.9945987,17424.0,17423.0,0.00291442]
[1673418153545,2.2945987,17424.0,17423.0,0.00291442]
[1673418154306,2.6233987,17424.0,17423.0,0.00291442]
[1673418155065,3.94220897,17424.0,17423.0,0.00291442]
[1673418155325,4.21096183,17424.0,17423.0,0.00291442]
[1673418156090,3.56868402,17424.0,17423.0,0.00291442]
[1673418156348,2.71231274,17424.0,17423.0,0.00291442]
[1673418159544,2.71189343,17424.0,17423.0,0.00291442]
[1673418162439,2.8838718,17424.0,17423.0,0.00291442]
[1673418162745,2.71192659,17424.0,17423.0,0.00291442]
[1673418163209,2.54762659,17424.0,17423.0,0.00291442]
[1673418163964,2.10519941,17424.0,17423.0,0.00291442]
[1673418165984,2.27714233,17424.0,17423.0,0.00291442]
[1673418166230,1.9341392,17424.0,17423.0,0.00291442]
[1673418166483,2.27714233,17424.0,17423.0,0.00291442]
[1673418167000,1.9341392,17424.0,17423.0,0.00291442]
[1673418167848,2.27714233,17424.0,17423.0,0.00291442]
[1673418168041,2.10519941,17424.0,17423.0,0.00291442]
[1673418168804,2.27713865,17424.0,17423.0,0.00291442]
[1673418169112,2.10519941,17424.0,17423.0,0.00291442]
[1673418169314,1.93413493,17424.0,17423.0,0.00291442]
[1673418169578,1.17585989,17424.0,17423.0,0.00291442]
[1673418169825,0.413324,17424.0,17423.0,0.00291442]
[1673418170082,0.054,17424.0,17423.0,0.00291442]
[1673418170338,0.054,17424.0,17423.0,0.62942138]
[1673418170600,0.054,17424.0,17423.0,0.80136451]
[1673418171856,0.054,17424.0,17423.0,0.62942138]
[1673418172932,0.054,17424.0,17423.0,0.80136451]
[1673418173691,0.054,17424.0,17423.0,0.62942138]
[1673418175005,0.413324,17424.0,17423.0,0.62942138]
[1673418178228,0.054,17424.0,17423.0,0.62942138]
[1673418178725,0.05393373,17424.0,17423.0,1.94927051]
[1673418180700,0.05393373,17424.0,17423.0,1.77732738]
[1673418181442,0.05393373,17424.0,17423.0,1.20337438]
[1673418185691,0.05393373,17424.0,17423.0,0.62942138]
[1673418185955,0.41325773,17424.0,17423.0,0.62942138]
[1673418186485,0.05393373,17424.0,17423.0,0.62942138]
[1673418186735,0.05393373,17424.0,17423.0,1.20337438]
[1673418189919,0.05393373,17424.0,17423.0,1.37531751]
[1673418190682,0.05393373,17424.0,17423.0,1.94927051]
[1673418193542,0.05393373,17424.0,17423.0,1.77732738]
[1673418195569,0.05393373,17424.0,17423.0,1.20337438]
[1673418196066,0.49966523,17424.0,17423.0,1.20337438]
[1673418198389,0.49966523,17424.0,17423.0,0.00291442]
[1673418198658,0.85898923,17424.0,17423.0,0.00291442]
[1673418199927,0.49966523,17424.0,17423.0,0.00291442]
[1673418200183,0.85898923,17424.0,17423.0,0.00291442]
[1673418200686,0.49966523,17424.0,17423.0,0.00291442]
[1673418206410,0.85898923,17424.0,17423.0,0.17485755]
[1673418206650,0.49966523,17424.0,17423.0,0.17485755]
[1673418208393,0.49966523,17424.0,17423.0,0.63541893]
[1673418209657,0.49966523,17424.0,17423.0,0.43277225]
[1673418210048,0.49966523,17424.0,17423.0,0.63657683]
[1673418212025,0.49966523,17424.0,17423.0,0.17485755]
[1673418213536,0.85898923,17424.0,17423.0,0.17485755]
[1673418214051,0.49966523,17424.0,17423.0,0.17485755]
[1673418214569,0.67160388,17424.0,17423.0,0.17485755]
[1673418214831,1.03092788,17424.0,17423.0,0.17485755]
[1673418215086,0.67160388,17424.0,17423.0,0.17485755]
[1673418215571,0.49966523,17424.0,17423.0,0.17485755]
[1673418216850,0.67160388,17424.0,17423.0,0.17485755]
[1673418217622,0.49966523,17424.0,17423.0,0.17485755]
[1673418217885,0.49966523,17424.0,17423.0,0.43277225]
[1673418218426,0.49966523,17424.0,17423.0,0.17485755]
[1673418220468,0.85898923,17424.0,17423.0,0.17485755]
[1673418221063,0.03771238,17424.0,17423.0,0.17485755]
[1673418221326,0.93605705,17426.0,17423.0,2.25406494]
[1673418221327,0.17193865,17426.0,17423.0,2.25406494]
[1673418221809,0.98830144,17427.0,17425.0,0.43016509]
[1673418221813,0.98830144,17427.0,17425.0,1.07429821]
[1673418222064,0.41994004,17427.0,17426.0,0.78936652]
[1673418222312,0.41979004,17427.0,17426.0,0.91032481]
[1673418222587,0.41979004,17427.0,17426.0,1.31211]
[1673418224161,0.01278514,17427.0,17426.0,1.35411]
[1673418224923,0.01278514,17427.0,17426.0,1.35430446]
[1673418226764,0.37204414,17427.0,17426.0,1.35430446]
[1673418227074,0.01278514,17427.0,17426.0,1.35430446]
[1673418227847,0.01278514,17427.0,17426.0,3.24757816]
[1673418228110,0.01278514,17427.0,17426.0,3.28669514]
[1673418228636,0.01278514,17427.0,17426.0,3.58669514]
[1673418229725,0.01278514,17427.0,17426.0,3.72003614]
[1673418229727,0.01278514,17427.0,17426.0,3.89169651]
[1673418229983,0.01278514,17427.0,17426.0,3.90682239]
[1673418230233,0.01191709,17427.0,17426.0,3.90682239]
[1673418231271,0.01191709,17427.0,17426.0,4.25085159]
[1673418231523,0.01191709,17427.0,17426.0,4.07929514]
[1673418231801,0.01191709,17427.0,17426.0,3.90663398]
[1673418233502,0.01191709,17427.0,17426.0,4.07929514]
[1673418233692,0.01191709,17427.0,17426.0,3.90663356]
[1673418235275,0.01191709,17427.0,17426.0,3.45047093]
[1673418242277,0.01191709,17427.0,17426.0,3.11439939]
[1673418242504,0.01191709,17427.0,17426.0,2.75514039]
[1673418245243,0.01191709,17427.0,17426.0,2.92661193]
[1673418245748,0.01191709,17427.0,17426.0,2.75514039]
[1673418246011,0.01191709,17427.0,17426.0,2.92661193]
[1673418246258,0.01191709,17427.0,17426.0,2.75514039]
[1673418247766,0.01191709,17427.0,17426.0,2.92661193]
[1673418248010,0.01191709,17427.0,17426.0,3.28587093]
[1673418249574,0.01191709,17427.0,17426.0,2.92661193]
[1673418250131,0.01191709,17427.0,17426.0,3.28587093]
[1673418250883,0.01191709,17427.0,17426.0,3.54338365]
[1673418251150,0.01191709,17427.0,17426.0,3.73924505]
[1673418251396,0.01191709,17427.0,17426.0,3.54338365]
[1673418251397,0.01182426,17427.0,17426.0,3.54338365]
[1673418251657,0.01182426,17427.0,17426.0,3.73923323]
[1673418254002,0.01182426,17427.0,17426.0,3.91189481]
[1673418254250,0.00950533,17427.0,17426.0,3.91189481]
[1673418255516,0.00950533,17427.0,17426.0,3.27465888]
[1673418255789,0.00950533,17427.0,17426.0,4.14176022]
[1673418257599,0.00950533,17427.0,17426.0,3.44731125]
[1673418257858,0.00950533,17427.0,17426.0,3.10317813]
[1673418258090,0.00950533,17427.0,17426.0,3.27301304]
[1673418259154,0.00950533,17427.0,17426.0,3.85653569]
[1673418259638,0.00950533,17427.0,17426.0,4.28555335]
[1673418259892,0.00950533,17427.0,17426.0,4.72572682]
[1673418260375,0.00950533,17427.0,17426.0,4.21011859]
[1673418260667,0.00950533,17427.0,17426.0,3.88211859]
[1673418261189,0.00950533,17427.0,17426.0,3.29859594]
[1673418261460,0.00950533,17427.0,17426.0,4.45642198]
[1673418261708,0.00950533,17427.0,17426.0,4.00545036]
[1673418261960,0.00950533,17427.0,17426.0,3.87482772]
[1673418262215,0.00950533,17427.0,17426.0,4.49685079]
[1673418267330,0.00950533,17427.0,17426.0,3.97880417]
[1673418267587,0.00950533,17427.0,17426.0,4.55797212]
[1673418268170,0.00950533,17427.0,17426.0,3.97880417]
[1673418269116,0.00950533,17427.0,17426.0,3.62522127]
[1673418269368,0.00950533,17427.0,17426.0,3.97880417]
[1673418270148,0.00950533,17427.0,17426.0,3.46319594]
[1673418270696,0.00950533,17427.0,17426.0,4.18900333]
[1673418271185,0.00950533,17427.0,17426.0,4.70485773]
[1673418272220,0.00950533,17427.0,17426.0,4.54025773]
[1673418274035,0.00764271,17427.0,17426.0,4.54025773]
[1673418275069,0.00764271,17427.0,17426.0,3.81445034]
[1673418275317,0.00764271,17427.0,17426.0,4.51016324]
[1673418275581,0.00764271,17427.0,17426.0,4.15090424]
[1673418275918,0.00764271,17427.0,17426.0,4.51016324]
[1673418276081,0.00764271,17427.0,17426.0,3.81445034]
[1673418276342,0.00764271,17427.0,17426.0,3.98726849]